Cogmind - Beta 12 @@@ ROGUE MODE // 2023.11.07 @ 18:12:23 Player: Qhaecretes Result: Destroyed by S-10 Pest with Light Assault Rifle Performance ------------- Evolutions (1) 500 Regions Visited (2) 400 Robots Destroyed (23) 115 Value Destroyed (401) 401 Prototype IDs (2) 40 Alien Tech Used (0) 0 Bonus (0) 0 TOTAL SCORE: 1456 Bonus ------- None Cogmind --------- Core Integrity 0/400 Matter 258/300 Energy 32/100 System Corruption 0% Temperature Cool (0) Movement Core (100) Ox1 Location -9/Materials Parts ------- > --- POWER (2) -------- (None) > --- PROPULSION (2) --- (None) > --- UTILITY (3) ------ Small Storage Unit Signal Interpreter Advanced Targeting Computer > --- WEAPON (2) ------- Datajack > --- INVENTORY (8) ---- Armored Wheel Armored Wheel Armored Wheel Cooling System Improved Sensor Array Advanced Targeting Computer Shield Generator Peak State ------------ > --- POWER ------------ Light Ion Engine Light Ion Engine > --- PROPULSION ------- Armored Wheel Armored Wheel > --- UTILITY ---------- Small Storage Unit Signal Interpreter Advanced Targeting Computer > --- WEAPON ----------- Particle Gun Datajack > --- INVENTORY -------- Armored Wheel Armored Wheel Armored Wheel Cooling System Improved Sensor Array Advanced Targeting Computer Shield Generator [Rating: 15] Favorites ----------- Power Light Ion Engine Engine Light Ion Engine Propulsion Aluminum Leg Leg Aluminum Leg Wheel Armored Wheel Hover Unit Improved Hover Unit Utility Small Storage Unit Device Improved Terrain Scanner Storage Small Storage Unit Processor Signal Interpreter Weapon Light Assault Rifle Energy Gun Medium Laser Ballistic Gun Light Assault Rifle Special Melee Weapon Datajack Build | -11 -10 -9 ------- Run | Jun Mat Mat Slots Evolved 2 | . . 2 Power 1 | . . 1 Propulsion . | . . . Utility 1 | . . 1 Weapon . | . . . Parts Attached 31 | 7 9 15 Power 4 | 1 1 2 Engine 4 | 1 1 2 Core . | . . . Reactor . | . . . Propulsion 7 | 2 2 3 Treads . | . . . Leg 4 | 2 2 . Wheel 2 | . . 2 Hover 1 | . . 1 Flight . | . . . Utility 9 | 2 3 4 Device 3 | 1 1 1 Storage 2 | 1 1 . Processor 4 | . 1 3 Hackware . | . . . Protection . | . . . Artifact . | . . . Weapon 11 | 2 3 6 Energy Gun 8 | 1 3 4 Energy Cannon . | . . . Ballistic Gun 1 | 1 . . Ballistic Cannon . | . . . Launcher . | . . . Special Weapon . | . . . Impact Weapon . | . . . Slashing Weapon . | . . . Piercing Weapon . | . . . Special Melee Weapon 2 | . . 2 Unidentified Prototypes . | . . . Parts Lost 11 | . 3 8 Power 4 | . 2 2 Propulsion 3 | . 1 2 Utility . | . . . Weapon 4 | . . 4 Highest Loss Streak 3 | . 2 3 To Critical Strikes 2 | . 1 1 Average Slot Usage (%) 88 | . 95 79 Engine 9 | . 11 7 Leg 17 | . 27 5 Wheel 6 | . . 14 Device 3 | . 4 3 Storage 11 | . 11 11 Processor 15 | . 12 18 Energy Gun 15 | . 20 10 Ballistic Gun 4 | . 7 . Special Melee Weapon 3 | . . 7 Naked Turns . | . . . Heaviest Build 15 | 11 12 15 Greatest Support 24 | 20 20 24 Greatest Overweight (x) 1 | . . 1 Average Overweight (x) . | . . . Largest Inventory Capacity 8 | 8 8 8 Average Capacity 7 | 7 7 8 Most Carried 8 | 1 8 8 Average Carried 4 | . 5 6 Final Capacity 8 | 8 8 8 Final Carried 7 | 1 7 7 Class Distribution -------------------- 100% | Mutant Dominant Class ---------------- Mutant | -10/Materials Mutant | -9/Materials Resources | -11 -10 -9 ----------- Run | Jun Mat Mat Matter Collected 438 | 149 235 54 Remotely . | . . . Salvage Created 666 | 204 317 145 Parts 56 | 20 19 17 Haulers Intercepted 1 | . 1 . Recyclers Shooed . | . . . Parts Field Recycled . | . . . Retrieved Matter . | . . . Parts Self-Destructed . | . . . Prevented . | . . . Kills | -11 -10 -9 ------- Run | Jun Mat Mat Combat Hostiles Destroyed 13 | . 8 5 Guns 13 | . 8 5 Classes Destroyed 7 | 2 4 1 Tunneler 5 | 5 . . Hauler 1 | . 1 . Recycler 1 | 1 . . Operator 1 | . . 1 Watcher 2 | . 1 1 Swarmer 7 | . 3 4 Grunt 6 | . 5 1 Best Kill Streak 5 | 3 3 5 Combat Bots Only 3 | . 3 3 Max Kills in Single Turn 1 | 1 1 1 Gunslinging . | . . . Exploded . | . . . Melee . | . . . Uniques/NPCs Destroyed . | . . . Combat | -11 -10 -9 -------- Run | Jun Mat Mat Damage Taken 1487 | . 564 923 Core 522 | . 122 400 Absorbed by Shields . | . . . Core Remaining (%) 75 | 100 51 . Volleys Fired 92 | 23 38 31 Largest 2 | 2 2 1 Hottest 100 | 60 100 65 Shots Fired 150 | 46 73 31 Gun 150 | 46 73 31 Cannon . | . . . Launcher . | . . . Special . | . . . Kinetic 38 | 23 15 . Thermal 92 | 23 58 11 Explosive . | . . . Electromagnetic 20 | . . 20 Robot Hit Streak 15 | 7 14 15 Robot Miss Streak 5 | 4 5 5 Penetration Max . | . . . Secondary Targets 2 | . 2 . Max Gunslinging Chain 1 | . 1 . Shots Hit Robots 91 | 25 44 22 Core Hits 43 | 11 18 14 Critical Kills . | . . . Critical Parts Destroyed . | . . . Critical Strikes 3 | . 1 2 Burn 2 | . 1 1 Corrupt 1 | . . 1 Melee Attacks . | . . . Impact . | . . . Slashing . | . . . Piercing . | . . . Sneak Attacks . | . . . Combat Hostiles . | . . . Follow-up Attacks . | . . . Damage Inflicted 1127 | 252 542 333 Guns 1109 | 252 542 315 Cannons . | . . . Explosions . | . . . Melee . | . . . Ramming 18 | . . 18 Kinetic 180 | 78 102 . Thermal 692 | 174 440 78 Explosive . | . . . Electromagnetic 237 | . . 237 Impact . | . . . Slashing . | . . . Piercing . | . . . Highest Corruption . | . . . Average Corruption . | . . . Corruption Purged . | . . . Corruption Blocked . | . . . Overload Shots . | . . . Overflow Damage . | . . . Projectiles . | . . . Explosions . | . . . Melee . | . . . Knockbacks . | . . . Impact . | . . . Kinetic . | . . . Secondary . | . . . Self-Inflicted Damage 8 | . . 8 Shots . | . . . Rammed 4 | . . 4 Targets Rammed 4 | . . 4 Kicked . | . . . Crushed . | . . . Highest Temperature 423 | 60 423 96 Average Temperature 113 | 23 173 32 Received Heat Transfer 456 | . 258 198 Effects 2 | . 2 . Energy Bleed 1 | . 1 . Short Circuit 1 | . 1 . Siege Activations . | . . . Robots Corrupted . | . . . Combat Hostiles . | . . . Parts Fried . | . . . Impact Corruptions . | . . . Robots Melted . | . . . Combat Hostiles . | . . . Parts Melted 3 | . 3 . Heat Transferred 1931 | 400 1272 259 Parts Sabotaged . | . . . Parts Stolen . | . . . Parts Stripped . | . . . Power Chain Reactions . | . . . Missiles Intercepted . | . . . Alert | -11 -10 -9 ------- Run | Jun Mat Mat Peak Influence 153 | 30 112 153 Initial 46 | . . 46 Average 54 | 22 52 82 Maximum Alert Level . | . . . Low Security (%) 100 | 100 100 100 Level 1 . | . . . Level 2 . | . . . Level 3 . | . . . Level 4 . | . . . Level 5 . | . . . High Security . | . . . Max Security . | . . . Squads Dispatched 2 | . . 2 Investigation 1 | . . 1 Extermination . | . . . Reinforcement 1 | . . 1 Assault . | . . . Garrison . | . . . Intercept . | . . . Searches Triggered . | . . . Construction Impeded . | . . . Haulers Reinforced . | . . . Active Scanning Responses . | . . . Cargo Convoy Interrupts . | . . . Stealth | -11 -10 -9 --------- Run | Jun Mat Mat Distress Signals 3 | . 1 2 Communications Jammed . | . . . Distress Signals . | . . . Times Spotted 35 | . 14 21 Peak Tracking Total 8 | . 4 8 Tactical Retreats 4 | . . 4 Traps | -11 -10 -9 ------- Run | Jun Mat Mat Traps Triggered . | . . . Indirectly . | . . . Trap Hack Attempts . | . . . Triggered . | . . . Disarmed . | . . . Reprogrammed . | . . . Reused . | . . . Traps Extracted . | . . . Installed . | . . . Triggered . | . . . Machines | -11 -10 -9 ---------- Run | Jun Mat Mat Machines Disabled 1 | . . 1 Max in Single Turn 1 | . . 1 Machines Repaired . | . . . Machines Sabotaged . | . . . Overloaded Fab Kills . | . . . Hacking | -11 -10 -9 --------- Run | Jun Mat Mat Machines Accessed 2 | . 1 1 Terminals 2 | . 1 1 Fabricators . | . . . Repair Stations . | . . . Recycling Units . | . . . Scanalyzers . | . . . Garrison Access . | . . . Total Hacks 7 | . 4 3 Successful 3 | . 2 1 Failed 4 | . 2 2 Catastrophic . | . . . Database Lockouts . | . . . Manual . | . . . Terminals 7 | . 4 3 Fabricators . | . . . Repair Stations . | . . . Recycling Units . | . . . Scanalyzers . | . . . Garrison Access . | . . . Terminal Hacks 3 | . 2 1 Prototype ID Bank 1 | . 1 . Locate Traps 1 | . 1 . Zone Layout 1 | . . 1 Fabricator Hacks . | . . . Repair Station Hacks . | . . . Recycling Unit Hacks . | . . . Scanalyzer . | . . . Garrison Access Hacks . | . . . Unauthorized Hacks . | . . . Terminals . | . . . Fabricators . | . . . Repair Stations . | . . . Recycling Units . | . . . Scanalyzers . | . . . Garrison Access . | . . . Data Cores Recovered 1 | . . 1 Used . | . . . Hacking Detections 1 | . . 1 Full Trace Events 1 | . . 1 Feedback Events . | . . . Feedback Blocked . | . . . Robot Schematics Acquired . | . . . Robots Built . | . . . Authchips . | . . . Time . | . . . Total Robot Build Rating . | . . . Part Schematics Acquired . | . . . Parts Built . | . . . Authchips . | . . . Time . | . . . Total Part Build Rating . | . . . Parts Repaired . | . . . Time . | . . . Parts Recycled . | . . . Recycled Matter . | . . . Retrieved Matter . | . . . Retrieved Components . | . . . Parts Scanalyzed . | . . . Part Schematics Acquired . | . . . Parts Damaged . | . . . Bothacking | -11 -10 -9 ------------ Run | Jun Mat Mat Used RIF Installer . | . . . Robots Hacked . | . . . Non-combat . | . . . Combat . | . . . Robot Hacks Applied . | . . . Relay Couplers Released . | . . . Fabnet Peak Effective % . | . . . Robots Rewired . | . . . Allies Hacked . | . . . Hacks Repelled . | . . . Allies | -11 -10 -9 -------- Run | Jun Mat Mat Total Allies . | . . . Largest Group . | . . . Highest-Rated Group . | . . . Highest-Rated Ally . | . . . Total Orders . | . . . Ally Attacks . | . . . Total Damage . | . . . Kills . | . . . Allies Corrupted . | . . . Allies Melted . | . . . Intel | -11 -10 -9 ------- Run | Jun Mat Mat Robot Analysis Total . | . . . Derelict Logs Recovered . | . . . Drone Launches . | . . . Drone Recoveries . | . . . Exploration | -11 -10 -9 ------------- Run | Jun Mat Mat Turns Passed 1594 | 414 662 518 Spaces Moved 739 | 94 312 333 Core 14 | 12 . 2 Treads . | . . . Legs 451 | 82 312 57 Wheels 253 | . . 253 Hover 21 | . . 21 Flight . | . . . Fastest Speed 50 | 50 120 90 Average Speed 108 | 111 120 97 Slowest Speed 130 | 120 120 130 Overloaded Moves . | . . . Propulsion Burnouts . | . . . Robots Hopped . | . . . Cave-ins Triggered . | . . . Exploration Rate (%) 26 | 5 40 34 Regions Visited 2 Branch Regions . Pre-discovered Areas . | . . . Known Exits Taken 1 | . 1 . Unknown Exits Taken 1 | 1 . . Scrap Searched . | . . . Spaces Dug . | . . . Terrain Destroyed . | . . . Melee . | . . . Projectile . | . . . AOE . | . . . Terrain Rammed . | . . . Walls Destroyed . | . . . Machines Disabled . | . . . Actions | -11 -10 -9 --------- Run | Jun Mat Mat Total 1384 | 358 532 494 Wait 478 | 234 154 90 Move 737 | 93 311 333 Hop . | . . . Pick Up 22 | 1 10 11 Fast Attach 15 | 7 2 6 Attach 8 | . 4 4 Detach 4 | . 3 1 Swap 8 | . 3 5 Drop 16 | . 7 9 Fire 92 | 23 38 31 Melee . | . . . Ram 4 | . . 4 Kick . | . . . Crush . | . . . Escape Stasis . | . . . Rewire . | . . . Trap . | . . . Miscellaneous . | . . . Route ------- -11/Junkyard -10/Materials (discovered 2 exits: *Mat / [*Min]) -9/Materials History --------- Turn | Location | Event 6 | -11/Junkyard | Discovered new exit (range 15) 415 | -11/Junkyard | Entered Materials 416 | -10/Materials | Build established: Mutant 955 | -10/Materials | Discovered new exit (range 9) 1056 | -10/Materials | Discovered new exit (range 14) 1075 | -10/Materials | Identified exit to Materials 1077 | -10/Materials | Entered another Materials area 1077 | -9/Materials | Evolved 2 slots: Power x1, Utility x1 1552 | -9/Materials | Core integrity fell below 50% 1576 | -9/Materials | Lost 3 parts (1p1n1w) 1581 | -9/Materials | Core integrity fell below 20% 1595 | -9/Materials | Destroyed by S-10 Pest with Light Assault Rifle Last Messages --------------- Slammed into G-34 Mercenary. Lgt. Ion Engine broken. Destabilizing: Short circuit. Slammed into G-34 Mercenary. T-07 Excavator is excavating. S-10 Pest destroyed. Particle Gun destroyed. Broken Lgt. Ion Engine destroyed. Critical hit (Destroy). Arm. Wheel destroyed. O-16 Technician: "IFF HANDSHAKE FAILED. SECURING TERMINAL." ALERT: Hostiles spotted, dispatching reinforcements to Terminal M008. M-13 Machinist repairs G-34 Mercenary. T-07 Excavator is excavating. Acquired EM Shotgun. S-10 Pest destroyed. Arm. Wheel destroyed. EM Shotgun destroyed. Acquired Datajack. Critical hit (Burn: +37). Map ----- +----------------------------------------------------+ | #?????????????##########?????????????????????????? | | ###########???# #?????????????????????????? | | # #???# #?????????????????????????? | | # #####== #??????????????######?####? | | # # #== #??????????????# # # | | # """ """ # #= #??????????????# # # | | + """ """ # # #??????????????# !! + + | | # """ """ + + #??????????????# != # # | | # # # #####??????????# # # | | # # # #####??????????# ?# ## | | ######+#### #######+######????????########?# # | | ?????# #?# ! #????# #?# ##????????# ##### + | | ?????# #?# #????# ## t##????????# # | | ???### ### T #????# ## #????????# # | | ???# #????# ## #??####### ##/#####? | | ???# # #????# ## #??? ## ## T #?? | | ???# #######??### ## #????? ## ## #?? | | ???# ########## ## ######### ## ## #?? | | ???# [% ## #?? | | ##### ########### %Y / """ #?? | | """ # #?????????# ##Y#######+######## """ #?? | | "R" # #?????????## ##*m #??? ?????# """ #?? | | " " + #??????????# ##Ysg#? ???# """ #?? | | # #??????????# ##!!!## #??# """ #?? | | # #??????????# ##!!!## """ #??# #?? | | # ########??## ##!@!## """"" #??# ! ??? | | # # #### # l## """"" #??# ??? | | ##### # / # ## """"" #???##?###?? | | ????# # #### # #### ?"""? #??????????? | | ????# ??????????# ##???###?????###??????????? | | ????# ??????????######?????????????????????????? | | ????# ?????????????????????????????????????????? | | ????? ?????????????????????????????????????????? | | ?????????????????????????????????????????????????? | | ?????????????????????????????????????????????????? | | ?????????????????????????????????????????????????? | | ?????????????????????????????????????????????????? | | ?????????????????????????????????????????????????? | | ?????????????????????????????????????????????????? | | ?????????????????????????????????????????????????? | | ?????????????????????????????????????????????????? | | ?????????????????????????????????????????????????? | | ?????????????????????????????????????????????????? | | ?????????????????????????????????????????????????? | | ?????????????????????????????????????????????????? | | ?????????????????????????????????????????????????? | | ?????????????????????????????????????????????????? | | ?????????????????????????????????????????????????? | | ?????????????????????????????????????????????????? | | ?????????????????????????????????????????????????? | +----------------------------------------------------+ Best States ------------- Heat Dissipation 50 Energy Generation 15 Energy Capacity 150 Matter Stores 300 Matter Capacity 300 Sight Range 16 Terrain Scan Range 16 Terrain Scan Density 10 Evasion (%) 55 Targeting Accuracy 8 Item Schematics ----------------- None Robot Schematics ------------------ None Fabricated ------------ Nothing Alien Tech Used ----------------- None Achievements -------------- None Challenges ------------ None Game ------ Seed BlastHoverLeg Manual? 0 Play Time 00:13:32 Cumulative 21.7 hours Start 2023.11.07 @ 17:59:05 End 2023.11.07 @ 18:12:23 Sessions 1 Manual Loads 0 Difficulty Rogue Special Mode None Game No. 40 Rogue 40 Adventurer 0 Explorer 0 Win Type - Total 0 Types 0/0/0/0/0/0/0/0/0 Lore% 11 Gallery% 29 Achievement% 20 Wizard Run 0 Options --------- ASCII 0 Keyboard 0 Movement Mouse Keybinds 0 Fullscreen 1 Font 18/SmallcapsGlow Map View 76x50 Tactical HUD 0 Map Filters NONE Filters NONE Steam 1 RUN: 8558089a-f1ba-43e7-9b80-50c1aa9a7e9c